bitfinex-derivatives/quotes_BTCF0:USTF0_20251230
["timestamp","ask_amount","ask_price","bid_price","bid_amount"]
[1767107721742,0.00011268,88494.0,88464.0,0.15356]
[1767107721936,0.00011268,88494.0,88467.0,0.11301989]
[1767107722244,0.00011268,88494.0,88468.0,0.15356]
[1767107722544,0.0113125,88493.0,88468.0,0.15356]
[1767107722737,0.00011268,88494.0,88468.0,0.05732]
[1767107722937,0.16922192,88490.0,88463.0,9e-08]
[1767107723132,0.16922192,88480.0,88463.0,9e-08]
[1767107723333,0.011316,88466.0,88450.0,0.09616]
[1767107723947,0.0113172,88457.0,88443.0,0.09616]
[1767107724247,0.00016959,88459.0,88441.0,0.00016959]
[1767107727438,0.00016959,88459.0,88415.0,0.24048]
[1767107727439,0.0113176,88454.0,88432.0,0.05732]
[1767107727743,0.01148649,88459.0,88433.0,0.0113201]
[1767107728042,0.00016959,88459.0,88432.0,0.05732]
[1767107728444,0.00016959,88459.0,88437.0,0.00016959]
[1767107728638,0.00016959,88459.0,88437.0,0.01148919]
[1767107728842,0.0113185,88446.0,88437.0,0.00016959]
[1767107729143,0.0113181,88450.0,88427.0,0.0962]
[1767107729449,0.09615,88449.0,88409.0,0.0113231]
[1767107729640,0.0113202,88433.0,88410.0,0.15352]
[1767107729837,0.0113198,88437.0,88410.0,0.15352]
[1767107730040,0.00016959,88432.0,88415.0,0.00016959]
[1767107731744,0.00016959,88432.0,88409.0,0.05732]
[1767107731745,0.0113215,88423.0,88409.0,0.05732]
[1767107731938,0.0113215,88423.0,88391.0,0.01155455]
[1767107731939,0.011321,88427.0,88407.0,0.05732]
[1767107732348,0.011321,88427.0,88416.0,0.0113]
[1767107732646,0.011321,88427.0,88407.0,0.05732]
[1767107732647,0.0113214,88424.0,88407.0,0.05732]
[1767107732849,0.0962,88428.0,88407.0,0.00016959]
[1767107733038,0.011321,88427.0,88407.0,0.00016959]
[1767107733243,0.0962,88428.0,88407.0,0.00016959]
[1767107733244,0.1075208,88428.0,88407.0,0.00016959]
[1767107733446,0.0962,88428.0,88407.0,0.00016959]
[1767107734342,0.00016959,88432.0,88407.0,0.00016959]
[1767107734548,0.10284,88431.0,88409.0,0.0113232]
[1767107734743,0.1141605,88431.0,88407.0,0.00016959]
[1767107734954,0.10284,88431.0,88407.0,0.00016959]
[1767107735248,0.10284,88431.0,88390.0,0.0962]
[1767107735452,0.10284,88431.0,88390.0,0.05732]
[1767107735747,0.0113189,88443.0,88400.0,0.0113243]
[1767107735937,0.06059791,88448.0,88400.0,0.0113243]
[1767107735938,0.0113196,88438.0,88407.0,0.0113234]
[1767107736138,0.00016959,88431.0,88407.0,0.0113234]
[1767107736344,0.1075206,88430.0,88403.0,0.011324]
[1767107736542,0.0113207,88429.0,88400.0,0.05732]
[1767107736744,0.0113211,88426.0,88400.0,0.05732]
[1767107736943,0.00016959,88431.0,88400.0,0.05732]
[1767107737146,0.05732,88430.0,88400.0,0.05732]
[1767107737954,0.05732,88430.0,88406.0,0.0113236]
[1767107738454,0.05732,88430.0,88405.0,0.0113236]
[1767107738655,0.00016959,88431.0,88411.0,0.011323]
[1767107739057,0.00016959,88431.0,88413.0,0.0113226]
[1767107739554,0.00016959,88431.0,88409.0,0.0962]
[1767107739555,0.0113208,88428.0,88409.0,0.05732]
[1767107740153,0.00016959,88431.0,88409.0,0.05732]
[1767107741350,0.00016959,88431.0,88413.0,0.0113226]
[1767107741945,0.00016959,88431.0,88409.0,0.05732]
[1767107742150,0.25941075,88480.0,88409.0,0.05732]
[1767107742151,0.0962,88443.0,88409.0,0.05732]
[1767107742353,0.15356,88444.0,88410.0,0.11309402]
[1767107743045,0.00016959,88436.0,88419.0,0.0113218]
[1767107743242,0.00016959,88436.0,88420.0,0.05736]
[1767107743642,0.00016959,88436.0,88421.0,0.0113216]
[1767107744256,0.00016959,88436.0,88420.0,0.05736]
[1767107744455,0.00016959,88436.0,88421.0,0.0113217]
[1767107744651,0.00016959,88436.0,88424.0,0.0113212]
[1767107744856,0.15356,88444.0,88425.0,0.0113211]
[1767107745049,0.15356,88444.0,88422.0,0.0113215]
[1767107745255,0.15356,88444.0,88421.0,0.0113217]
[1767107745958,0.00016959,88441.0,88421.0,0.0113217]
[1767107748460,0.0113194,88440.0,88422.0,0.05732]
[1767107748662,0.0113193,88440.0,88422.0,0.05732]
[1767107748959,0.00016959,88441.0,88422.0,0.05732]
[1767107750754,0.0113198,88437.0,88422.0,0.05732]
[1767107751154,0.0113193,88440.0,88422.0,0.05732]
[1767107751360,0.0113216,88422.0,88418.0,9e-08]
[1767107751667,0.00016959,88441.0,88401.0,0.05732]
[1767107751668,0.05732,88431.0,88401.0,0.05732]
[1767107751860,0.0113211,88426.0,88402.0,0.0113241]
[1767107752364,0.0113213,88425.0,88401.0,0.05732]
[1767107752662,0.00016959,88422.0,88404.0,0.00016959]
[1767107752965,0.00016959,88422.0,88405.0,0.0113237]
[1767107753559,0.00016959,88422.0,88404.0,0.00016959]
[1767107753759,0.00016959,88422.0,88404.0,0.01149339]
[1767107753959,0.15352,88430.0,88404.0,0.00016959]
[1767107754260,0.05732,88434.0,88410.0,0.011323]
[1767107754459,0.05732,88434.0,88412.0,0.0113228]
[1767107754872,0.0686395,88439.0,88414.0,0.0113226]
[1767107755063,0.00016959,88435.0,88418.0,0.00016959]
[1767107755861,0.01148959,88435.0,88418.0,0.00016959]
[1767107756168,0.00016959,88435.0,88418.0,0.00016959]
[1767107758065,0.01148959,88435.0,88418.0,0.00016959]
[1767107758266,0.00016959,88435.0,88418.0,0.00016959]
[1767107761064,0.00016959,88435.0,88419.0,0.0113219]
[1767107761466,0.00016959,88435.0,88418.0,0.00016959]
[1767107761659,0.05732,88450.0,88418.0,0.00016959]
[1767107761660,0.0962,88450.0,88421.0,0.06042956]
[1767107761858,0.0962,88459.0,88427.0,0.06042956]
[1767107762067,0.1075154,88470.0,88431.0,0.06042956]
[1767107762269,0.1075154,88470.0,88427.0,0.0113208]
[1767107762270,0.0962,88470.0,88441.0,0.011319]
[1767107762472,0.0962,88470.0,88442.0,0.15352]
[1767107762767,0.0962,88478.0,88447.0,0.00016959]
[1767107762964,0.0113134,88486.0,88458.0,0.0113169]
[1767107762965,0.0962,88483.0,88458.0,0.0113169]
[1767107763165,0.02438798,88482.0,88459.0,0.15352]
[1767107763364,0.0962,88483.0,88459.0,0.15352]
[1767107763767,0.00016959,88480.0,88459.0,0.15352]
[1767107763963,0.00016959,88480.0,88459.0,0.1648368]
[1767107764170,0.0962,88500.0,88460.0,0.11303138]
[1767107764369,0.0113119,88498.0,88469.0,0.0113155]
[1767107764674,0.05732,88499.0,88470.0,0.15352]
[1767107764869,0.05732,88499.0,88471.0,0.0962]
[1767107765069,0.05732,88499.0,88479.0,0.0113142]
[1767107765270,0.05732,88499.0,88476.0,0.00016959]
[1767107765271,0.00016959,88494.0,88476.0,0.00016959]
[1767107765472,0.01148199,88494.0,88476.0,0.00016959]
[1767107765770,0.00016959,88494.0,88476.0,0.00016959]
[1767107765964,0.00016959,88494.0,88477.0,0.0113144]
[1767107766166,0.0099159,88513.0,88482.0,0.0113138]
[1767107766167,0.0962,88508.0,88482.0,0.0113138]
[1767107766685,0.0962,88508.0,88481.0,0.011314]
[1767107766973,0.0113099,88514.0,88483.0,0.11300073]
[1767107766974,0.0962,88514.0,88483.0,0.11300073]
[1767107767177,0.00011236,88507.0,88478.0,0.15352]
[1767107767377,0.00011236,88507.0,88479.0,0.11300073]
[1767107767580,0.0962,88514.0,88495.0,0.0113121]
[1767107767768,0.0113078,88530.0,88496.0,0.05732]
[1767107767970,0.15352,88529.0,88502.0,0.0113112]
[1767107768265,0.15352,88529.0,88472.0,0.06042956]
[1767107768469,0.15352,88529.0,88473.0,0.14328]
[1767107768670,0.0113094,88518.0,88492.0,0.00016949]
[1767107768974,0.15352,88517.0,88492.0,0.00016949]
[1767107769473,0.0112596,88516.0,88492.0,0.00016949]
[1767107769677,0.0113096,88516.0,88492.0,0.00016949]
[1767107769971,0.0113113,88503.0,88492.0,0.00016949]
[1767107770174,0.0113111,88505.0,88492.0,9e-08]
[1767107770362,0.0113109,88506.0,88492.0,9e-08]
[1767107771269,0.15352,88517.0,88492.0,9e-08]
[1767107771270,0.0113107,88507.0,88492.0,9e-08]
[1767107771780,0.011311,88505.0,88492.0,9e-08]
[1767107771980,0.15344,88506.0,88475.0,0.09616]
[1767107772175,0.0113122,88496.0,88475.0,0.09616]
[1767107772381,0.0113116,88500.0,88475.0,0.09616]
[1767107772581,0.15344,88506.0,88475.0,0.09616]
[1767107772582,0.0113121,88497.0,88475.0,0.09616]
[1767107772880,0.0113124,88494.0,88475.0,0.09616]
[1767107773080,0.0113119,88498.0,88477.0,0.00016949]
[1767107774275,0.0113113,88503.0,88477.0,0.00016949]
[1767107775070,0.15344,88506.0,88477.0,0.00016949]
[1767107775273,0.15344,88505.0,88482.0,0.0113138]
[1767107775473,0.0113111,88504.0,88477.0,0.00016949]
[1767107775675,0.0113111,88504.0,88478.0,0.15344]
[1767107776680,0.01148,88508.0,88478.0,0.15344]
[1767107776882,0.0001694,88508.0,88481.0,0.0113139]
[1767107777377,0.0001694,88508.0,88487.0,0.0113132]
[1767107777580,0.0001694,88508.0,88490.0,0.0113128]
[1767107778081,0.0001694,88508.0,88488.0,0.15344]
[1767107778583,0.0113099,88513.0,88488.0,0.15344]
[1767107778584,0.09616,88528.0,88493.0,0.0113125]
[1767107778786,0.0113092,88520.0,88493.0,0.0113125]
[1767107778968,0.0113087,88523.0,88493.0,0.0113125]
[1767107779281,0.09616,88527.0,88501.0,0.0113113]
[1767107779483,0.09616,88527.0,88505.0,0.00016949]
[1767107779683,0.0113083,88526.0,88505.0,0.00016949]
[1767107780183,0.0113091,88520.0,88505.0,0.00016949]
[1767107780479,0.0113104,88510.0,88497.0,0.05728]
[1767107780780,0.0113104,88510.0,88473.0,0.24044]
[1767107780781,0.09616,88516.0,88490.0,0.05728]
[1767107780985,0.0113106,88509.0,88490.0,0.05728]
[1767107781175,0.09616,88516.0,88490.0,0.05728]
[1767107781485,0.00016949,88512.0,88494.0,0.00016949]
[1767107781977,0.0113102,88511.0,88494.0,0.00016949]
[1767107782476,0.00016949,88512.0,88494.0,0.00016949]
[1767107783069,0.0113107,88508.0,88494.0,0.00016949]
[1767107783477,0.0113109,88506.0,88494.0,0.00016949]
[1767107783875,0.00016949,88512.0,88475.0,0.0113147]
[1767107783876,0.011312,88498.0,88475.0,0.0113147]
[1767107784084,0.09616,88505.0,88475.0,0.0113147]
[1767107784279,0.0113121,88496.0,88471.0,0.0113152]
[1767107784580,0.0113104,88510.0,88484.0,0.0113135]
[1767107784775,0.0113107,88508.0,88484.0,0.0113136]
[1767107784978,0.00016949,88505.0,88487.0,0.00016949]
[1767107785284,0.01148059,88505.0,88487.0,0.00016949]
[1767107786187,0.00016949,88505.0,88487.0,0.00016949]
[1767107786883,0.09616,88513.0,88491.0,0.0113127]
[1767107787070,0.09616,88513.0,88487.0,0.00016949]
[1767107787586,0.0113107,88507.0,88487.0,0.00016949]
[1767107787881,0.00016949,88506.0,88487.0,0.00016949]
[1767107788183,0.0113091,88520.0,88487.0,0.00016949]
[1767107788380,0.1074691,88520.0,88488.0,0.11299435]
[1767107788578,0.1074691,88520.0,88489.0,0.0113129]
[1767107788784,0.09616,88520.0,88497.0,0.0113119]
[1767107788976,0.09616,88520.0,88498.0,0.15344]
[1767107789177,0.09616,88520.0,88499.0,0.09616]
[1767107791381,0.1074679,88529.0,88499.0,0.09616]
[1767107791579,0.1647479,88529.0,88505.0,0.00016949]
[1767107792182,0.00016949,88526.0,88505.0,9e-08]
[1767107792385,0.0113121,88496.0,88484.0,0.0803]
[1767107792684,0.15344,88506.0,88482.0,0.09616]
[1767107792875,0.0113122,88496.0,88470.0,0.06042956]
[1767107793075,0.0113125,88493.0,88471.0,0.09612]
[1767107793274,0.0113132,88488.0,88473.0,0.00016949]
[1767107793472,0.0113143,88480.0,88455.0,0.06042956]
[1767107793672,0.0113138,88483.0,88460.0,0.09612]
[1767107793882,0.0113137,88484.0,88460.0,0.09612]
[1767107794588,0.0113137,88484.0,88463.0,0.00016949]
[1767107795284,0.1074335,88485.0,88463.0,0.00016949]
[1767107795584,0.0113139,88482.0,88463.0,0.00016949]
[1767107795780,0.09612,88485.0,88448.0,0.0113182]
[1767107795781,0.0113148,88476.0,88448.0,0.0113182]
[1767107795986,0.18026673,88480.0,88454.0,0.0113174]
[1767107796187,0.0113142,88480.0,88454.0,0.0113174]
[1767107796378,0.011314,88482.0,88454.0,0.0113174]
[1767107796580,0.09612,88485.0,88457.0,0.011317]
[1767107796881,0.0113151,88473.0,88446.0,0.06042956]
[1767107797082,0.0113151,88473.0,88447.0,0.1534]
[1767107797978,0.0113151,88473.0,88451.0,0.00016949]
[1767107798881,0.0113154,88470.0,88451.0,0.00016949]
[1767107799287,0.0113149,88474.0,88451.0,0.00016949]
[1767107799888,0.09616,88475.0,88451.0,0.00016949]
[1767107800077,0.16895253,88470.0,88439.0,9.345e-05]
[1767107800283,0.16895253,88450.0,88427.0,0.06042956]
[1767107800482,0.0113196,88438.0,88418.0,0.06042956]
[1767107800679,0.0113195,88438.0,88416.0,0.06042956]
[1767107800882,0.0113195,88438.0,88415.0,0.1534]
[1767107801083,0.0001696,88435.0,88418.0,0.0001696]
[1767107801284,9.196e-05,88434.0,88418.0,0.0001696]
[1767107801492,9.196e-05,88434.0,88419.0,0.0113219]
[1767107801887,0.0113181,88449.0,88422.0,0.0113215]
[1767107802084,0.15344,88448.0,88418.0,0.0001696]
[1767107802382,0.09616,88447.0,88422.0,0.0113215]
[1767107802587,0.09616,88447.0,88418.0,0.0114916]
[1767107802982,0.0001696,88441.0,88418.0,0.0114916]
[1767107804785,0.0001696,88441.0,88421.0,0.0113216]
[1767107806498,0.0001696,88441.0,88418.0,0.0001696]
[1767107807095,0.0001696,88441.0,88419.0,0.011322]
[1767107807797,0.05728,88440.0,88422.0,0.0113216]
[1767107808493,0.16895253,88432.0,88388.0,0.0803]
[1767107808796,0.22623253,88440.0,88399.0,0.0113245]
[1767107808797,0.0113207,88429.0,88399.0,0.0113245]
[1767107808984,0.0113211,88426.0,88399.0,0.0113245]
[1767107809182,0.0113211,88426.0,88400.0,0.05728]
[1767107809395,0.0962,88428.0,88401.0,0.0113242]
[1767107809699,0.0001696,88423.0,88406.0,0.0001696]
[1767107809997,0.0962,88422.0,88406.0,0.0001696]
[1767107810600,0.0001696,88423.0,88406.0,0.0001696]
[1767107811595,0.0001696,88423.0,88407.0,0.0113235]
[1767107812495,0.0001696,88423.0,88406.0,0.0001696]
[1767107812796,0.0001696,88423.0,88377.0,0.0113273]
[1767107812797,0.0113223,88417.0,88394.0,0.05728]
[1767107813096,0.0113223,88417.0,88395.0,0.05728]
[1767107813394,0.16895253,88420.0,88395.0,0.05728]
[1767107813783,0.0001696,88423.0,88399.0,0.00011319]
[1767107813983,0.0001696,88423.0,88379.0,0.01143419]
[1767107813984,0.16895253,88410.0,88379.0,0.01143419]
[1767107814196,0.05728,88413.0,88392.0,0.0113254]
[1767107814395,0.05728,88412.0,88391.0,0.0113255]
[1767107814592,0.0962,88411.0,88380.0,0.15348]
[1767107814983,0.16895253,88400.0,88379.0,8.133e-05]
[1767107815497,0.16895253,88400.0,88379.0,0.01135833]
[1767107815701,0.0962,88401.0,88379.0,3.133e-05]
[1767107815996,0.0962,88401.0,88380.0,0.0113269]
[1767107816398,0.09615,88401.0,88380.0,0.0113269]
[1767107816594,5.149e-05,88400.0,88380.0,0.0113269]
[1767107816982,5.149e-05,88400.0,88379.0,3.133e-05]
[1767107817491,5.149e-05,88400.0,88386.0,0.0113261]
[1767107818292,0.0001696,88404.0,88379.0,3.133e-05]
[1767107818498,0.0962,88405.0,88388.0,0.0113259]
[1767107818798,0.05728,88408.0,88390.0,0.0113255]
[1767107818992,0.05728,88407.0,88390.0,0.0113255]
[1767107819493,0.0574497,88407.0,88390.0,0.0114952]
[1767107820193,0.0574497,88407.0,88390.0,0.0001697]
[1767107820394,0.05728,88413.0,88390.0,0.0001697]
[1767107820700,0.05728,88413.0,88393.0,0.0113252]
[1767107821396,0.0001697,88412.0,88395.0,0.0113249]
[1767107821591,0.09624,88426.0,88390.0,0.0001697]
[1767107821796,0.05728,88428.0,88395.0,0.011325]
[1767107821990,0.05728,88428.0,88413.0,0.0113226]
[1767107822497,0.011321,88427.0,88412.0,0.0001697]
[1767107822694,0.0113213,88425.0,88400.0,0.05728]
[1767107822898,0.0113215,88423.0,88400.0,0.15352]
[1767107823199,0.05728,88428.0,88400.0,0.15352]
[1767107823397,0.15352,88427.0,88400.0,0.15352]
[1767107823591,0.15352,88427.0,88405.0,0.0001697]
[1767107823995,0.15352,88427.0,88405.0,0.0114933]
[1767107824196,0.15352,88427.0,88407.0,0.0113235]
[1767107824391,0.15352,88427.0,88405.0,0.0001697]
[1767107824895,0.09624,88427.0,88405.0,0.0001697]
[1767107825098,0.05728,88426.0,88405.0,0.0001697]
[1767107825601,0.05728,88426.0,88411.0,0.0113229]
[1767107826295,0.05728,88426.0,88405.0,0.0001697]
[1767107826296,0.0001697,88429.0,88415.0,0.0113225]
[1767107826496,0.3192,88451.0,88416.0,0.15352]
[1767107826685,0.0113185,88447.0,88419.0,0.0113219]
[1767107826890,0.16895253,88440.0,88412.0,0.05728]
[1767107827088,0.0113199,88435.0,88412.0,0.05728]
[1767107827302,0.18027313,88430.0,88410.0,0.09624]
[1767107827599,0.0113208,88428.0,88411.0,0.0001697]
[1767107827905,0.0574497,88429.0,88411.0,0.0001697]
[1767107828609,0.16895253,88421.0,88392.0,0.09624]
[1767107828903,0.0574497,88429.0,88388.0,0.05728]
[1767107828904,0.15352,88420.0,88388.0,0.05728]
[1767107829092,0.09624,88419.0,88391.0,0.0113254]
[1767107829290,0.0113239,88404.0,88367.0,0.01171867]
[1767107829493,0.0001697,88400.0,88383.0,0.0001697]
[1767107829801,0.0113254,88393.0,88374.0,0.09624]
[1767107830099,0.011325,88395.0,88363.0,0.01136808]
[1767107830310,0.0113275,88376.0,88352.0,0.09624]
[1767107830500,0.0113275,88376.0,88333.0,0.00704875]
[1767107830501,0.0113271,88379.0,88354.0,0.0113302]
[1767107830800,0.16895253,88364.0,88340.0,0.011332]
[1767107831000,0.0113291,88363.0,88336.0,0.0113326]
[1767107831502,0.0686085,88368.0,88337.0,0.15352]
[1767107831702,0.0686085,88368.0,88338.0,0.05728]
[1767107831897,0.0001697,88362.0,88338.0,0.05728]
[1767107832497,0.0001697,88362.0,88336.0,0.09624]
[1767107832691,0.0001697,88362.0,88313.0,0.2519755]
[1767107832692,0.0113298,88358.0,88313.0,0.0113355]
[1767107832897,0.16895253,88350.0,88328.0,0.0113336]
[1767107833099,0.0113302,88355.0,88329.0,0.15352]
[1767107833297,0.0113302,88355.0,88328.0,0.0113336]
[1767107833496,0.15352,88357.0,88329.0,0.12044]
[1767107833702,0.15352,88357.0,88336.0,0.0113325]
[1767107833901,0.15352,88357.0,88330.0,0.09624]
[1767107834102,0.15352,88357.0,88336.0,0.0113325]
[1767107835299,0.15352,88357.0,88340.0,0.011332]
[1767107835499,0.15352,88357.0,88330.0,0.09624]
[1767107835500,0.15352,88357.0,88336.0,0.0113325]
[1767107836408,0.15352,88357.0,88331.0,0.0113332]
[1767107836799,0.15352,88357.0,88337.0,0.0113324]
[1767107836999,0.15352,88357.0,88333.0,0.0113329]
[1767107837902,0.05728,88356.0,88333.0,0.0113329]
[1767107838101,0.09628,88355.0,88333.0,0.0113329]
[1767107838507,0.09628,88355.0,88330.0,0.09624]
[1767107838714,0.09628,88355.0,88311.0,0.02303028]
[1767107838715,0.0113316,88344.0,88321.0,0.09628]
[1767107838902,0.0001698,88341.0,88321.0,0.09628]
[1767107839600,0.16895253,88340.0,88317.0,8.716e-05]
[1767107839802,0.16895253,88340.0,88288.0,0.0113387]
[1767107840011,0.0001698,88323.0,88305.0,0.0113364]
[1767107840209,0.0001698,88323.0,88303.0,0.10508]
[1767107840405,0.0113319,88342.0,88303.0,0.10508]
[1767107840406,0.05732,88332.0,88317.0,0.0113349]
[1767107840912,0.00011849,88331.0,88317.0,0.0113349]
[1767107841298,0.05732,88340.0,88322.0,0.0113344]
[1767107841502,0.05732,88340.0,88321.0,0.0113345]
[1767107841908,0.05732,88340.0,88318.0,0.09628]
[1767107842413,0.0001698,88338.0,88321.0,0.0113344]
[1767107842710,0.0001698,88338.0,88325.0,0.0113339]
[1767107842907,0.05732,88346.0,88328.0,0.0113335]
[1767107843112,0.05732,88346.0,88331.0,0.0113331]
[1767107843311,0.16895253,88370.0,88334.0,0.0113328]
[1767107843515,0.16895253,88360.0,88333.0,0.1536]
[1767107843704,0.1536,88359.0,88333.0,0.1649329]
[1767107843905,0.0001698,88355.0,88338.0,0.0113323]
[1767107844205,0.0001698,88355.0,88341.0,0.0113318]
[1767107844509,0.0001698,88355.0,88337.0,0.0115022]
[1767107844708,0.0001698,88355.0,88337.0,0.0001698]
[1767107844909,0.16895253,88380.0,88338.0,0.10768]
[1767107845210,0.1536,88379.0,88338.0,0.10768]
[1767107845399,0.0113266,88383.0,88353.0,0.0113304]
[1767107845400,0.1536,88378.0,88353.0,0.0113304]
[1767107845605,0.1536,88378.0,88351.0,0.09628]
[1767107845805,0.09628,88383.0,88352.0,0.09628]
[1767107846016,0.0001698,88376.0,88359.0,0.0001698]
[1767107846508,0.0001698,88376.0,88359.0,0.0114994]
[1767107846813,0.0001698,88376.0,88359.0,0.0001698]
[1767107847510,0.0001698,88376.0,88362.0,0.0113291]
[1767107847818,0.0001698,88376.0,88362.0,0.1076091]
[1767107848206,0.0001698,88376.0,88362.0,0.1075591]
[1767107848712,0.0001698,88376.0,88365.0,0.0113288]
[1767107849316,0.0001698,88376.0,88359.0,0.0001698]
[1767107849509,0.0001698,88376.0,88360.0,0.0113295]
[1767107850012,0.0001698,88376.0,88359.0,0.0001698]
[1767107850203,0.0001698,88376.0,88359.0,0.0114993]
[1767107850409,0.0001698,88376.0,88359.0,0.0001698]
[1767107850809,0.0113295,88360.0,88321.0,0.0113345]
[1767107851009,0.16895253,88361.0,88336.0,0.0113326]
[1767107851321,0.0113303,88354.0,88330.0,0.0113333]
[1767107851516,0.09628,88360.0,88329.0,0.1536]
[1767107851710,0.09628,88360.0,88341.0,0.0113319]
[1767107851916,0.0001698,88359.0,88342.0,0.0001698]
[1767107852313,0.0001698,88359.0,88346.0,0.0113313]
[1767107852614,0.0001698,88359.0,88342.0,0.0001698]
[1767107852615,0.0001698,88359.0,88343.0,0.0113316]
[1767107853016,0.0001698,88359.0,88342.0,0.0001698]
[1767107853215,0.16895253,88390.0,88342.0,0.0574898]
[1767107853418,0.16895253,88390.0,88355.0,0.0113301]
[1767107853419,0.17819838,88389.0,88355.0,0.0113301]
[1767107853614,0.02459838,88388.0,88359.0,0.0113296]
[1767107853823,0.16895253,88370.0,88343.0,0.20946491]
[1767107854018,0.1536,88375.0,88355.0,0.0113301]
[1767107854220,0.0964498,88374.0,88356.0,0.0001698]
[1767107854409,0.0113283,88370.0,88356.0,0.0001698]
[1767107854603,0.0113278,88373.0,88356.0,0.0001698]
[1767107854909,0.0001698,88374.0,88356.0,0.0001698]
[1767107855217,0.0114975,88374.0,88356.0,0.0001698]
[1767107855406,0.0113281,88372.0,88356.0,0.0001698]
[1767107855606,0.0113284,88369.0,88347.0,0.0113312]
[1767107855808,0.0113284,88369.0,88348.0,0.05732]
[1767107856120,0.0113288,88366.0,88344.0,0.0113315]
[1767107856316,0.0113288,88366.0,88345.0,0.09628]
[1767107856516,0.0113291,88363.0,88345.0,0.09628]
[1767107856819,0.0113296,88359.0,88345.0,0.0001698]
[1767107857409,0.0113296,88359.0,88320.0,0.0113346]
[1767107857410,0.0113296,88359.0,88339.0,0.09628]
[1767107857725,0.0113291,88363.0,88342.0,0.0113318]
[1767107857907,0.0113295,88361.0,88342.0,0.0113318]
[1767107858108,0.011329,88364.0,88342.0,0.0113318]
[1767107858519,0.011329,88364.0,88344.0,0.0001698]
[1767107858520,0.0001698,88362.0,88344.0,0.0001698]
[1767107858711,0.0001698,88362.0,88353.0,0.0113303]
[1767107858913,0.09628,88377.0,88355.0,0.0113301]
[1767107859111,0.1536,88377.0,88360.0,0.0113294]
[1767107859319,0.1536,88377.0,88351.0,0.09628]
[1767107859909,0.06171569,88387.0,88351.0,0.09628]
[1767107859910,0.0001698,88373.0,88351.0,0.09628]
[1767107860115,0.09628,88393.0,88354.0,0.0113302]
[1767107860420,0.1536,88395.0,88354.0,0.0113302]
[1767107860625,0.1536,88394.0,88376.0,0.0113274]
[1767107860823,0.1536,88394.0,88372.0,0.0113278]
[1767107861126,0.00016971,88392.0,88374.0,0.00016971]
[1767107861822,0.0113256,88391.0,88374.0,0.00016971]
[1767107862125,0.00016971,88392.0,88374.0,0.00016971]
[1767107862326,0.0113258,88389.0,88374.0,0.00016971]
[1767107862521,0.00016971,88392.0,88344.0,0.01146063]
[1767107862731,0.1536,88394.0,88332.0,0.011333]
[1767107862732,0.0113281,88372.0,88348.0,0.011331]
[1767107863026,0.15356,88381.0,88349.0,0.09628]
[1767107863225,0.09628,88380.0,88349.0,0.09628]
[1767107863521,0.0113283,88370.0,88356.0,0.00016971]
[1767107863728,0.00016971,88373.0,88357.0,0.0113299]
[1767107864625,0.00016971,88373.0,88356.0,0.00016971]
[1767107865321,0.00016971,88373.0,88359.0,0.0113295]
[1767107865622,0.09628,88380.0,88360.0,0.0113294]
[1767107865824,0.0113264,88385.0,88360.0,0.0113294]
[1767107866127,0.1486,88384.0,88360.0,0.0113294]
[1767107866317,0.0113266,88383.0,88359.0,0.09628]
[1767107866629,0.00016971,88380.0,88359.0,0.09628]
[1767107866921,0.0113276,88375.0,88356.0,0.00016971]
[1767107867426,0.00016971,88380.0,88356.0,0.00016971]
[1767107867623,0.0113279,88373.0,88356.0,0.00016971]
[1767107868129,0.0113271,88379.0,88357.0,0.0113298]
[1767107869029,0.00016971,88380.0,88363.0,0.0113291]
[1767107869327,0.0113271,88379.0,88358.0,0.0113297]
[1767107869517,0.0113275,88376.0,88356.0,0.00016971]
[1767107869716,0.00016971,88380.0,88356.0,0.00016971]
[1767107870026,0.0113277,88375.0,88356.0,0.00016971]
[1767107870227,0.0113279,88373.0,88356.0,0.00016971]
[1767107871426,0.09628,88374.0,88356.0,0.00016971]
[1767107871934,0.1076078,88374.0,88356.0,0.00016971]
[1767107872117,0.09628,88374.0,88356.0,0.00016971]
[1767107872317,0.09628,88374.0,88331.0,0.08032345]
[1767107872517,0.02473351,88373.0,88332.0,0.15356]
[1767107872721,0.0113301,88356.0,88335.0,0.0113327]
[1767107873218,0.0113297,88359.0,88337.0,0.0113324]
[1767107873422,0.00016971,88357.0,88339.0,0.01150191]
[1767107873624,0.0113303,88354.0,88339.0,0.00016971]
[1767107873926,0.00016971,88357.0,88339.0,0.00016971]
[1767107874124,0.0113306,88352.0,88339.0,0.00016971]
[1767107874331,0.09628,88353.0,88339.0,0.00016971]
[1767107874834,0.0113309,88350.0,88339.0,0.00016971]
[1767107875132,0.0113309,88350.0,88330.0,0.0113334]
[1767107875326,0.1076104,88353.0,88330.0,0.0113334]
[1767107876033,0.0113308,88350.0,88333.0,0.00016971]
[1767107876733,0.09628,88353.0,88333.0,0.00016971]
[1767107876936,0.0113306,88352.0,88333.0,0.00016971]
[1767107877132,0.09628,88353.0,88333.0,0.00016971]
[1767107877326,0.05728,88352.0,88333.0,0.00016971]
[1767107877532,0.15356,88352.0,88333.0,0.00016971]
[1767107877932,0.00016971,88357.0,88340.0,0.011332]
[1767107878128,0.0113294,88361.0,88339.0,0.09628]
[1767107878329,0.05728,88362.0,88339.0,0.1076122]
[1767107879031,0.00016971,88359.0,88346.0,0.0113312]
[1767107879424,0.00016971,88359.0,88339.0,0.1076122]
[1767107880335,0.05728,88362.0,88339.0,0.1076122]
[1767107880336,0.05728,88362.0,88343.0,0.0113316]
[1767107880524,0.05728,88362.0,88347.0,0.0113311]
[1767107880926,0.24076,88384.0,88339.0,0.09628]
[1767107880927,0.06059791,88401.0,88348.0,0.05728]
[1767107881138,0.0113253,88394.0,88366.0,0.0113287]
[1767107881433,0.00016971,88389.0,88371.0,0.01149781]
[1767107882129,0.00016971,88389.0,88376.0,0.0113273]
[1767107882732,0.09628,88401.0,88371.0,0.00016971]
[1767107882936,0.24076,88414.0,88373.0,0.0113278]
[1767107882937,0.05728,88402.0,88373.0,0.0113278]
[1767107883240,0.0113255,88392.0,88374.0,0.15356]
[1767107883533,0.15356,88402.0,88377.0,0.0113273]
[1767107883734,0.00016971,88398.0,88374.0,0.15356]
[1767107883935,0.01149441,88398.0,88374.0,0.1648877]
[1767107884141,0.00016971,88398.0,88380.0,0.0113269]
[1767107884340,0.00016971,88398.0,88379.0,0.0113271]
[1767107884732,0.00016971,88398.0,88374.0,0.15356]
[1767107885639,0.00016971,88398.0,88379.0,0.011327]
[1767107886042,0.00016971,88398.0,88374.0,0.15356]
[1767107886430,0.0113249,88396.0,88374.0,0.15356]
[1767107887129,0.00016971,88398.0,88371.0,0.00016971]
[1767107887534,0.0113256,88391.0,88371.0,0.00016971]